Department family,Entity,Date,Expense type,Expense area,Supplier,Transaction number,Amount
Department of Health,Leicestershire Partnership NHS Trust,04/01/21,Payroll Deductions -Salary Sacrifice Cars Scheme,Balance Sheet Collection,TUSKER,44698,28798.72
Department of Health,Leicestershire Partnership NHS Trust,04/01/21,Crs_NHS_LT1y -Resus Inventory Supplied.,Balance Sheet Collection,SUPPLY CHAIN CO LTD,1121165719,32480.22
Department of Health,Leicestershire Partnership NHS Trust,05/01/21,Nurse - Band 6 -Agency,AMH - Central Access Point,HCL NURSING,HNSI0000578,732.38
Department of Health,Leicestershire Partnership NHS Trust,05/01/21,NURSE - BAND 2 - AGENCY,Acacia (Willows),HCL NURSING,HNSI0000578,286.60
Department of Health,Leicestershire Partnership NHS Trust,05/01/21,Nurse - Band 6 -Agency,Adult City East CMHT - Merlyn Vaz,HCL NURSING,HNSI0000578,1629.34
Department of Health,Leicestershire Partnership NHS Trust,05/01/21,Nurse - Band 6 -Agency,Adult County West Leicestershire CMHT,HCL NURSING,HNSI0000578,855.97
Department of Health,Leicestershire Partnership NHS Trust,05/01/21,NURSE - BAND 2 - AGENCY,Agnes Unit Management,HCL NURSING,HNSI0000578,5001.57
Department of Health,Leicestershire Partnership NHS Trust,05/01/21,NURSE - BAND 5 - AGENCY,Agnes Unit Management,HCL NURSING,HNSI0000578,6059.35
Department of Health,Leicestershire Partnership NHS Trust,05/01/21,NURSE - BAND 5 - AGENCY,Ashby Ward (Bradgate Unit),HCL NURSING,HNSI0000578,659.67
Department of Health,Leicestershire Partnership NHS Trust,05/01/21,NURSE - BAND 2 - AGENCY,Aston Ward (Bradgate Unit),HCL NURSING,HNSI0000578,2012.69
Department of Health,Leicestershire Partnership NHS Trust,05/01/21,NURSE - BAND 5 - AGENCY,Aston Ward (Bradgate Unit),HCL NURSING,HNSI0000578,756.52
Department of Health,Leicestershire Partnership NHS Trust,05/01/21,NURSE - BAND 2 - AGENCY,Beaumont Ward - Bradgate Unit,HCL NURSING,HNSI0000578,2670.64
Department of Health,Leicestershire Partnership NHS Trust,05/01/21,NURSE - BAND 2 - AGENCY,Belvoir Psychiatric Intensive Care Unit,HCL NURSING,HNSI0000578,1470.55
Department of Health,Leicestershire Partnership NHS Trust,05/01/21,Nurse - Band 6 -Agency,Crisis Resolution,HCL NURSING,HNSI0000578,3505.97
Department of Health,Leicestershire Partnership NHS Trust,05/01/21,NURSE - BAND 2 - AGENCY,Griffin Ward (HPC),HCL NURSING,HNSI0000578,3685.18
Department of Health,Leicestershire Partnership NHS Trust,05/01/21,NURSE - BAND 5 - AGENCY,Griffin Ward (HPC),HCL NURSING,HNSI0000578,2480.69
Department of Health,Leicestershire Partnership NHS Trust,05/01/21,NURSE - BAND 2 - AGENCY,Heather Ward,HCL NURSING,HNSI0000578,1018.15
Department of Health,Leicestershire Partnership NHS Trust,05/01/21,Nurse - Band 6 -Agency,Leicestershire Psych-oncology Service,HCL NURSING,HNSI0000578,427.99
Department of Health,Leicestershire Partnership NHS Trust,05/01/21,Nurse - Band 6 -Agency,Mental Health Triage Team,HCL NURSING,HNSI0000578,1504.09
Department of Health,Leicestershire Partnership NHS Trust,05/01/21,NURSE - BAND 2 - AGENCY,Mill Lodge,HCL NURSING,HNSI0000578,1565.72
Department of Health,Leicestershire Partnership NHS Trust,05/01/21,NURSE - BAND 5 - AGENCY,Phoenix Ward (HPC),HCL NURSING,HNSI0000578,329.84
Department of Health,Leicestershire Partnership NHS Trust,05/01/21,Nurse - Band 6 -Agency,AMH - Central Access Point,HCL NURSING,HNSI0000570,1146.44
Department of Health,Leicestershire Partnership NHS Trust,05/01/21,Nurse - Band 6 -Agency,Adult City East CMHT - Merlyn Vaz,HCL NURSING,HNSI0000570,3209.90
Department of Health,Leicestershire Partnership NHS Trust,05/01/21,Nurse - Band 6 -Agency,Adult County Charnwood CMHT - Loughborough Base,HCL NURSING,HNSI0000570,1823.54
Department of Health,Leicestershire Partnership NHS Trust,05/01/21,Nurse - Band 6 -Agency,Adult County West Leicestershire CMHT,HCL NURSING,HNSI0000570,2139.93
Department of Health,Leicestershire Partnership NHS Trust,05/01/21,NURSE - BAND 2 - AGENCY,Agnes Unit Management,HCL NURSING,HNSI0000570,6574.89
Department of Health,Leicestershire Partnership NHS Trust,05/01/21,NURSE - BAND 5 - AGENCY,Agnes Unit Management,HCL NURSING,HNSI0000570,3438.35
Department of Health,Leicestershire Partnership NHS Trust,05/01/21,NURSE - BAND 2 - AGENCY,Ashby Ward (Bradgate Unit),HCL NURSING,HNSI0000570,425.37
Department of Health,Leicestershire Partnership NHS Trust,05/01/21,NURSE - BAND 5 - AGENCY,Ashby Ward (Bradgate Unit),HCL NURSING,HNSI0000570,392.91
Department of Health,Leicestershire Partnership NHS Trust,05/01/21,NURSE - BAND 2 - AGENCY,Aston Ward (Bradgate Unit),HCL NURSING,HNSI0000570,934.27
Department of Health,Leicestershire Partnership NHS Trust,05/01/21,NURSE - BAND 5 - AGENCY,Aston Ward (Bradgate Unit),HCL NURSING,HNSI0000570,329.83
Department of Health,Leicestershire Partnership NHS Trust,05/01/21,NURSE - BAND 2 - AGENCY,Beaumont Ward - Bradgate Unit,HCL NURSING,HNSI0000570,1906.27
Department of Health,Leicestershire Partnership NHS Trust,05/01/21,NURSE - BAND 5 - AGENCY,Beaumont Ward - Bradgate Unit,HCL NURSING,HNSI0000570,1319.35
Department of Health,Leicestershire Partnership NHS Trust,05/01/21,NURSE - BAND 2 - AGENCY,Belvoir Psychiatric Intensive Care Unit,HCL NURSING,HNSI0000570,2027.55
Department of Health,Leicestershire Partnership NHS Trust,05/01/21,Nurse - Band 6 -Agency,Crisis Resolution,HCL NURSING,HNSI0000570,5616.74
Department of Health,Leicestershire Partnership NHS Trust,05/01/21,NURSE - BAND 2 - AGENCY,Griffin Ward (HPC),HCL NURSING,HNSI0000570,4194.21
Department of Health,Leicestershire Partnership NHS Trust,05/01/21,NURSE - BAND 5 - AGENCY,Griffin Ward (HPC),HCL NURSING,HNSI0000570,2457.94
Department of Health,Leicestershire Partnership NHS Trust,05/01/21,NURSE - BAND 2 - AGENCY,Heather Ward,HCL NURSING,HNSI0000570,164.98
Department of Health,Leicestershire Partnership NHS Trust,05/01/21,NURSE - BAND 5 - AGENCY,Heather Ward,HCL NURSING,HNSI0000570,327.39
Department of Health,Leicestershire Partnership NHS Trust,05/01/21,NURSE - BAND 2 - AGENCY,Maple Ward,HCL NURSING,HNSI0000570,223.59
Department of Health,Leicestershire Partnership NHS Trust,05/01/21,Nurse - Band 6 -Agency,Mental Health Triage Team,HCL NURSING,HNSI0000570,1522.92
Department of Health,Leicestershire Partnership NHS Trust,05/01/21,NURSE - BAND 2 - AGENCY,Mill Lodge,HCL NURSING,HNSI0000570,736.27
Department of Health,Leicestershire Partnership NHS Trust,05/01/21,NURSE - BAND 2 - AGENCY,Stewart House,HCL NURSING,HNSI0000570,942.73
Department of Health,Leicestershire Partnership NHS Trust,05/01/21,NURSE - BAND 2 - AGENCY,Thornton Ward - Bradgate Unit,HCL NURSING,HNSI0000570,277.89
Department of Health,Leicestershire Partnership NHS Trust,05/01/21,NURSE - BAND 5 - AGENCY,Watermead Ward (Bradgate Unit),HCL NURSING,HNSI0000570,392.91
Department of Health,Leicestershire Partnership NHS Trust,05/01/21,Nurse - Band 6 -Agency,CAMHS Waiting List Monies,HCL SOCIAL CARE,HWSI0000242,27816.15
Department of Health,Leicestershire Partnership NHS Trust,05/01/21,Nurse - Band 6 -Agency,CAMHS Outpatients,HCL SOCIAL CARE,HWSI0000234,977.63
Department of Health,Leicestershire Partnership NHS Trust,05/01/21,Nurse - Band 6 -Agency,CAMHS Waiting List Monies,HCL SOCIAL CARE,HWSI0000234,24694.36
Department of Health,Leicestershire Partnership NHS Trust,05/01/21,WIP Project Not in BS - Information Technology,Work in Progress,INSIGHT DIRECT (UK) LTD,5118419,57036.00
Department of Health,Leicestershire Partnership NHS Trust,05/01/21,Occupational Health,HR Operations,UHL NHS TRUST (RWE),L0246626,82102.00
Department of Health,Leicestershire Partnership NHS Trust,05/01/21,UHL Facilities Management SLA,Estates Central Invoices To Recharge,UHL NHS TRUST (RWE),L0246669,927445.43
Department of Health,Leicestershire Partnership NHS Trust,05/01/21,Electricity,Estates & Facilities Central,UHL NHS TRUST (RWE),L0246670,37515.15
Department of Health,Leicestershire Partnership NHS Trust,05/01/21,Cytogenetic Testing,Children Services Medical,UHL NHS TRUST (RWE),L0246737,202195.06
Department of Health,Leicestershire Partnership NHS Trust,05/01/21,MRI Scans,Children Services Medical,UHL NHS TRUST (RWE),L0246737,7000.00
Department of Health,Leicestershire Partnership NHS Trust,05/01/21,Pathology Service,Children Services Medical,UHL NHS TRUST (RWE),L0246737,72328.00
Department of Health,Leicestershire Partnership NHS Trust,05/01/21,MRI Scans,Dementia Related Drugs and Investigations,UHL NHS TRUST (RWE),L0246737,11000.00
Department of Health,Leicestershire Partnership NHS Trust,05/01/21,Pathology Service,UHL Expenditure Contract,UHL NHS TRUST (RWE),L0246737,62331.94
Department of Health,Leicestershire Partnership NHS Trust,06/01/21,Unitary Payment,"The Agnes Unit (AKA Assessment and Treatment Centre) (P85, LPT)",ARDEN PARTNERSHIP (LEICESTER),SI0064,119584.82
Department of Health,Leicestershire Partnership NHS Trust,06/01/21,Leased / Hired Vehicles,Autism,AUTOMOTIVE LEASING LTD,507761300,638.96
Department of Health,Leicestershire Partnership NHS Trust,06/01/21,Prep_ LT1y -Prepayments Lease Cars,Balance Sheet Collection,AUTOMOTIVE LEASING LTD,507761300,27807.30
Department of Health,Leicestershire Partnership NHS Trust,06/01/21,Trade_Drs_LT1y -Lease Cars Invoicing Contrl Ac.,Balance Sheet Collection,AUTOMOTIVE LEASING LTD,507761300,150.87
Department of Health,Leicestershire Partnership NHS Trust,06/01/21,Leased / Hired Vehicles,COVID 19,AUTOMOTIVE LEASING LTD,507761300,472.36
Department of Health,Leicestershire Partnership NHS Trust,06/01/21,Leased / Hired Vehicles,City Planned Care - West,AUTOMOTIVE LEASING LTD,507761300,335.85
Department of Health,Leicestershire Partnership NHS Trust,06/01/21,Leased / Hired Vehicles,Crisis Response and Home Treatment,AUTOMOTIVE LEASING LTD,507761300,578.68
Department of Health,Leicestershire Partnership NHS Trust,06/01/21,Leased / Hired Vehicles,Integrated Specialist Palliative Care Team,AUTOMOTIVE LEASING LTD,507761300,10.00
Department of Health,Leicestershire Partnership NHS Trust,06/01/21,Leased / Hired Vehicles,School Age Immunisation and Vaccinations,AUTOMOTIVE LEASING LTD,507761300,703.36
Department of Health,Leicestershire Partnership NHS Trust,06/01/21,Leased / Hired Vehicles,South Leicestershire CMHT MHSOP,AUTOMOTIVE LEASING LTD,507761300,66.28
Department of Health,Leicestershire Partnership NHS Trust,06/01/21,Leased / Hired Vehicles,West Planned Care  - Hinckley Hub,AUTOMOTIVE LEASING LTD,507761300,265.44
Department of Health,Leicestershire Partnership NHS Trust,06/01/21,Network Costs - WAN Maint,HIS Infrastructure,VIRGIN MEDIA BUSINESS,262421-176,40768.94
Department of Health,Leicestershire Partnership NHS Trust,07/01/21,NURSE - BAND 2 - AGENCY,Beechwood Ward,HCL NURSING,HNSI0000559,653.25
Department of Health,Leicestershire Partnership NHS Trust,07/01/21,NURSE - BAND 5 - AGENCY,Beechwood Ward,HCL NURSING,HNSI0000559,2125.40
Department of Health,Leicestershire Partnership NHS Trust,07/01/21,NURSE - BAND 5 - AGENCY,City Planned Care - East,HCL NURSING,HNSI0000559,19572.39
Department of Health,Leicestershire Partnership NHS Trust,07/01/21,NURSE - BAND 5 - AGENCY,City Planned Care - West,HCL NURSING,HNSI0000559,12143.55
Department of Health,Leicestershire Partnership NHS Trust,07/01/21,Nurse - Band 6 -Agency,City West CMHT MHSOP,HCL NURSING,HNSI0000559,855.97
Department of Health,Leicestershire Partnership NHS Trust,07/01/21,NURSE - BAND 2 - AGENCY,Clarendon Ward,HCL NURSING,HNSI0000559,1751.85
Department of Health,Leicestershire Partnership NHS Trust,07/01/21,NURSE - BAND 5 - AGENCY,Clarendon Ward,HCL NURSING,HNSI0000559,467.53
Department of Health,Leicestershire Partnership NHS Trust,07/01/21,NURSE - BAND 2 - AGENCY,Coalville Snibston Ward,HCL NURSING,HNSI0000559,657.46
Department of Health,Leicestershire Partnership NHS Trust,07/01/21,NURSE - BAND 2 - AGENCY,Coleman Ward,HCL NURSING,HNSI0000559,1116.40
Department of Health,Leicestershire Partnership NHS Trust,07/01/21,NURSE - BAND 5 - AGENCY,Coleman Ward,HCL NURSING,HNSI0000559,4812.79
Department of Health,Leicestershire Partnership NHS Trust,07/01/21,NURSE - BAND 2 - AGENCY,Gwendolen Ward,HCL NURSING,HNSI0000559,508.35
Department of Health,Leicestershire Partnership NHS Trust,07/01/21,NURSE - BAND 5 - AGENCY,Gwendolen Ward,HCL NURSING,HNSI0000559,1512.99
Department of Health,Leicestershire Partnership NHS Trust,07/01/21,NURSE - BAND 2 - AGENCY,H&B Comm Hosp East Ward,HCL NURSING,HNSI0000559,6745.91
Department of Health,Leicestershire Partnership NHS Trust,07/01/21,NURSE - BAND 5 - AGENCY,H&B Comm Hosp East Ward,HCL NURSING,HNSI0000559,15524.39
Department of Health,Leicestershire Partnership NHS Trust,07/01/21,NURSE - BAND 2 - AGENCY,H&B Comm Hosp North Ward,HCL NURSING,HNSI0000559,2659.54
Department of Health,Leicestershire Partnership NHS Trust,07/01/21,NURSE - BAND 5 - AGENCY,H&B Comm Hosp North Ward,HCL NURSING,HNSI0000559,2008.42
Department of Health,Leicestershire Partnership NHS Trust,07/01/21,NURSE - BAND 5 - AGENCY,Lough Swithland Ward,HCL NURSING,HNSI0000559,386.05
Department of Health,Leicestershire Partnership NHS Trust,07/01/21,Nurse - Band 6 -Agency,MHSOP Unscheduled Care Service,HCL NURSING,HNSI0000559,1387.89
Department of Health,Leicestershire Partnership NHS Trust,07/01/21,NURSE - BAND 2 - AGENCY,St Lukes Stroke Ward,HCL NURSING,HNSI0000559,593.43
Department of Health,Leicestershire Partnership NHS Trust,07/01/21,NURSE - BAND 5 - AGENCY,St Lukes Stroke Ward,HCL NURSING,HNSI0000559,320.17
Department of Health,Leicestershire Partnership NHS Trust,07/01/21,NURSE - BAND 2 - AGENCY,St Lukes Ward 3,HCL NURSING,HNSI0000559,240.34
Department of Health,Leicestershire Partnership NHS Trust,07/01/21,NURSE - BAND 5 - AGENCY,St Lukes Ward 3,HCL NURSING,HNSI0000559,2200.33
Department of Health,Leicestershire Partnership NHS Trust,07/01/21,NURSE - BAND 2 - AGENCY,Wakerley Ward,HCL NURSING,HNSI0000559,1702.74
Department of Health,Leicestershire Partnership NHS Trust,07/01/21,NURSE - BAND 5 - AGENCY,Wakerley Ward,HCL NURSING,HNSI0000559,4529.78
Department of Health,Leicestershire Partnership NHS Trust,07/01/21,NURSE - BAND 2 - AGENCY,Welford Ward,HCL NURSING,HNSI0000559,313.12
Department of Health,Leicestershire Partnership NHS Trust,07/01/21,NURSE - BAND 2 - AGENCY,Beechwood Ward,HCL NURSING,HNSI0000565,775.98
Department of Health,Leicestershire Partnership NHS Trust,07/01/21,NURSE - BAND 5 - AGENCY,Beechwood Ward,HCL NURSING,HNSI0000565,326.26
Department of Health,Leicestershire Partnership NHS Trust,07/01/21,NURSE - BAND 5 - AGENCY,City Planned Care - East,HCL NURSING,HNSI0000565,17529.21
Department of Health,Leicestershire Partnership NHS Trust,07/01/21,NURSE - BAND 5 - AGENCY,City Planned Care - West,HCL NURSING,HNSI0000565,8981.62
Department of Health,Leicestershire Partnership NHS Trust,07/01/21,Nurse - Band 6 -Agency,City West CMHT MHSOP,HCL NURSING,HNSI0000565,2046.47
Department of Health,Leicestershire Partnership NHS Trust,07/01/21,NURSE - BAND 2 - AGENCY,Clarendon Ward,HCL NURSING,HNSI0000565,1223.07
Department of Health,Leicestershire Partnership NHS Trust,07/01/21,NURSE - BAND 5 - AGENCY,Clarendon Ward,HCL NURSING,HNSI0000565,1539.00
Department of Health,Leicestershire Partnership NHS Trust,07/01/21,NURSE - BAND 5 - AGENCY,Coalville Snibston Ward,HCL NURSING,HNSI0000565,386.05
Department of Health,Leicestershire Partnership NHS Trust,07/01/21,NURSE - BAND 2 - AGENCY,Coalville Ward 2,HCL NURSING,HNSI0000565,1034.64
Department of Health,Leicestershire Partnership NHS Trust,07/01/21,NURSE - BAND 2 - AGENCY,Coleman Ward,HCL NURSING,HNSI0000565,833.33
Department of Health,Leicestershire Partnership NHS Trust,07/01/21,NURSE - BAND 5 - AGENCY,Coleman Ward,HCL NURSING,HNSI0000565,4499.97
Department of Health,Leicestershire Partnership NHS Trust,07/01/21,NURSE - BAND 5 - AGENCY,Dalgliesh Ward,HCL NURSING,HNSI0000565,772.10
Department of Health,Leicestershire Partnership NHS Trust,07/01/21,NURSE - BAND 2 - AGENCY,Gwendolen Ward,HCL NURSING,HNSI0000565,1240.37
Department of Health,Leicestershire Partnership NHS Trust,07/01/21,NURSE - BAND 5 - AGENCY,Gwendolen Ward,HCL NURSING,HNSI0000565,3148.59
Department of Health,Leicestershire Partnership NHS Trust,07/01/21,NURSE - BAND 2 - AGENCY,H&B Comm Hosp East Ward,HCL NURSING,HNSI0000565,11778.99
Department of Health,Leicestershire Partnership NHS Trust,07/01/21,NURSE - BAND 5 - AGENCY,H&B Comm Hosp East Ward,HCL NURSING,HNSI0000565,14533.80
Department of Health,Leicestershire Partnership NHS Trust,07/01/21,NURSE - BAND 2 - AGENCY,H&B Comm Hosp North Ward,HCL NURSING,HNSI0000565,3788.70
Department of Health,Leicestershire Partnership NHS Trust,07/01/21,NURSE - BAND 5 - AGENCY,H&B Comm Hosp North Ward,HCL NURSING,HNSI0000565,2910.34
Department of Health,Leicestershire Partnership NHS Trust,07/01/21,NURSE - BAND 5 - AGENCY,Kirby Ward,HCL NURSING,HNSI0000565,282.96
Department of Health,Leicestershire Partnership NHS Trust,07/01/21,NURSE - BAND 2 - AGENCY,Rutland Ward Nursing,HCL NURSING,HNSI0000565,1034.85
Department of Health,Leicestershire Partnership NHS Trust,07/01/21,NURSE - BAND 5 - AGENCY,Rutland Ward Nursing,HCL NURSING,HNSI0000565,386.05
Department of Health,Leicestershire Partnership NHS Trust,07/01/21,Nurse - Band 6 -Agency,Rutland Ward Nursing,HCL NURSING,HNSI0000565,1387.89
Department of Health,Leicestershire Partnership NHS Trust,07/01/21,NURSE - BAND 2 - AGENCY,St Lukes Stroke Ward,HCL NURSING,HNSI0000565,338.52
Department of Health,Leicestershire Partnership NHS Trust,07/01/21,NURSE - BAND 5 - AGENCY,St Lukes Stroke Ward,HCL NURSING,HNSI0000565,434.40
Department of Health,Leicestershire Partnership NHS Trust,07/01/21,NURSE - BAND 2 - AGENCY,St Lukes Ward 3,HCL NURSING,HNSI0000565,254.94
Department of Health,Leicestershire Partnership NHS Trust,07/01/21,NURSE - BAND 5 - AGENCY,St Lukes Ward 3,HCL NURSING,HNSI0000565,1705.91
Department of Health,Leicestershire Partnership NHS Trust,07/01/21,NURSE - BAND 2 - AGENCY,Wakerley Ward,HCL NURSING,HNSI0000565,1902.26
Department of Health,Leicestershire Partnership NHS Trust,07/01/21,NURSE - BAND 5 - AGENCY,Wakerley Ward,HCL NURSING,HNSI0000565,6943.96
Department of Health,Leicestershire Partnership NHS Trust,07/01/21,External Data Processing / Storage,Records & information Governance,H COATES LTD/TA C&V DATA,4003758,32302.82
Department of Health,Leicestershire Partnership NHS Trust,07/01/21,Nurse - Band 6 -Agency,AMH - Central Access Point,HCL NURSING,HNSI0000554,1999.40
Department of Health,Leicestershire Partnership NHS Trust,07/01/21,NURSE - BAND 2 - AGENCY,Acacia (Willows),HCL NURSING,HNSI0000554,174.73
Department of Health,Leicestershire Partnership NHS Trust,07/01/21,Nurse - Band 6 -Agency,Adult City East CMHT - Merlyn Vaz,HCL NURSING,HNSI0000554,1069.97
Department of Health,Leicestershire Partnership NHS Trust,07/01/21,NURSE - BAND 2 - AGENCY,Agnes Unit Management,HCL NURSING,HNSI0000554,7952.60
Department of Health,Leicestershire Partnership NHS Trust,07/01/21,NURSE - BAND 5 - AGENCY,Agnes Unit Management,HCL NURSING,HNSI0000554,5539.15
Department of Health,Leicestershire Partnership NHS Trust,07/01/21,NURSE - BAND 2 - AGENCY,Ashby Ward (Bradgate Unit),HCL NURSING,HNSI0000554,395.29
Department of Health,Leicestershire Partnership NHS Trust,07/01/21,NURSE - BAND 5 - AGENCY,Ashby Ward (Bradgate Unit),HCL NURSING,HNSI0000554,659.67
Department of Health,Leicestershire Partnership NHS Trust,07/01/21,NURSE - BAND 2 - AGENCY,Aston Ward (Bradgate Unit),HCL NURSING,HNSI0000554,561.76
Department of Health,Leicestershire Partnership NHS Trust,07/01/21,NURSE - BAND 5 - AGENCY,Aston Ward (Bradgate Unit),HCL NURSING,HNSI0000554,967.02
Department of Health,Leicestershire Partnership NHS Trust,07/01/21,NURSE - BAND 2 - AGENCY,Beaumont Ward - Bradgate Unit,HCL NURSING,HNSI0000554,2935.09
Department of Health,Leicestershire Partnership NHS Trust,07/01/21,NURSE - BAND 5 - AGENCY,Beaumont Ward - Bradgate Unit,HCL NURSING,HNSI0000554,329.84
Department of Health,Leicestershire Partnership NHS Trust,07/01/21,NURSE - BAND 5 - AGENCY,Belvoir Psychiatric Intensive Care Unit,HCL NURSING,HNSI0000554,674.78
Department of Health,Leicestershire Partnership NHS Trust,07/01/21,Nurse - Band 6 -Agency,Crisis Resolution,HCL NURSING,HNSI0000554,4944.89
Department of Health,Leicestershire Partnership NHS Trust,07/01/21,NURSE - BAND 2 - AGENCY,Griffin Ward (HPC),HCL NURSING,HNSI0000554,1192.12
Department of Health,Leicestershire Partnership NHS Trust,07/01/21,NURSE - BAND 5 - AGENCY,Griffin Ward (HPC),HCL NURSING,HNSI0000554,1520.29
Department of Health,Leicestershire Partnership NHS Trust,07/01/21,NURSE - BAND 2 - AGENCY,Heather Ward,HCL NURSING,HNSI0000554,519.31
Department of Health,Leicestershire Partnership NHS Trust,07/01/21,Nurse - Band 6 -Agency,Mental Health Triage Team,HCL NURSING,HNSI0000554,1264.09
Department of Health,Leicestershire Partnership NHS Trust,07/01/21,NURSE - BAND 2 - AGENCY,Mill Lodge,HCL NURSING,HNSI0000554,411.14
Department of Health,Leicestershire Partnership NHS Trust,07/01/21,NURSE - BAND 2 - AGENCY,Phoenix Ward (HPC),HCL NURSING,HNSI0000554,513.87
Department of Health,Leicestershire Partnership NHS Trust,07/01/21,NURSE - BAND 2 - AGENCY,Stewart House,HCL NURSING,HNSI0000554,1027.52
Department of Health,Leicestershire Partnership NHS Trust,07/01/21,NURSE - BAND 2 - AGENCY,Watermead Ward (Bradgate Unit),HCL NURSING,HNSI0000554,922.21
Department of Health,Leicestershire Partnership NHS Trust,07/01/21,NURSE - BAND 2 - AGENCY,Beechwood Ward,HCL NURSING,HNSI0000571,1401.06
Department of Health,Leicestershire Partnership NHS Trust,07/01/21,NURSE - BAND 5 - AGENCY,City Planned Care - East,HCL NURSING,HNSI0000571,21034.31
Department of Health,Leicestershire Partnership NHS Trust,07/01/21,NURSE - BAND 5 - AGENCY,City Planned Care - West,HCL NURSING,HNSI0000571,11725.50
Department of Health,Leicestershire Partnership NHS Trust,07/01/21,Nurse - Band 6 -Agency,City West CMHT MHSOP,HCL NURSING,HNSI0000571,2116.22
Department of Health,Leicestershire Partnership NHS Trust,07/01/21,NURSE - BAND 2 - AGENCY,Clarendon Ward,HCL NURSING,HNSI0000571,1483.19
Department of Health,Leicestershire Partnership NHS Trust,07/01/21,NURSE - BAND 5 - AGENCY,Clarendon Ward,HCL NURSING,HNSI0000571,2495.27
Department of Health,Leicestershire Partnership NHS Trust,07/01/21,NURSE - BAND 2 - AGENCY,Coalville Ward 2,HCL NURSING,HNSI0000571,288.02
Department of Health,Leicestershire Partnership NHS Trust,07/01/21,NURSE - BAND 2 - AGENCY,Coleman Ward,HCL NURSING,HNSI0000571,750.66
Department of Health,Leicestershire Partnership NHS Trust,07/01/21,NURSE - BAND 5 - AGENCY,Coleman Ward,HCL NURSING,HNSI0000571,4082.18
Department of Health,Leicestershire Partnership NHS Trust,07/01/21,NURSE - BAND 5 - AGENCY,Dalgliesh Ward,HCL NURSING,HNSI0000571,386.05
Department of Health,Leicestershire Partnership NHS Trust,07/01/21,NURSE - BAND 2 - AGENCY,Gwendolen Ward,HCL NURSING,HNSI0000571,1781.47
Department of Health,Leicestershire Partnership NHS Trust,07/01/21,NURSE - BAND 5 - AGENCY,Gwendolen Ward,HCL NURSING,HNSI0000571,3661.38
Department of Health,Leicestershire Partnership NHS Trust,07/01/21,NURSE - BAND 2 - AGENCY,H&B Comm Hosp East Ward,HCL NURSING,HNSI0000571,27213.19
Department of Health,Leicestershire Partnership NHS Trust,07/01/21,NURSE - BAND 2 - AGENCY,H&B Comm Hosp North Ward,HCL NURSING,HNSI0000571,5513.70
Department of Health,Leicestershire Partnership NHS Trust,07/01/21,NURSE - BAND 5 - AGENCY,H&B Comm Hosp North Ward,HCL NURSING,HNSI0000571,3064.15
Department of Health,Leicestershire Partnership NHS Trust,07/01/21,NURSE - BAND 2 - AGENCY,Kirby Ward,HCL NURSING,HNSI0000571,114.91
Department of Health,Leicestershire Partnership NHS Trust,07/01/21,NURSE - BAND 5 - AGENCY,Kirby Ward,HCL NURSING,HNSI0000571,579.25
Department of Health,Leicestershire Partnership NHS Trust,07/01/21,NURSE - BAND 5 - AGENCY,Lough Swithland Ward,HCL NURSING,HNSI0000571,1154.33
Department of Health,Leicestershire Partnership NHS Trust,07/01/21,Nurse - Band 6 -Agency,MHSOP Unscheduled Care Service,HCL NURSING,HNSI0000571,2041.27
Department of Health,Leicestershire Partnership NHS Trust,07/01/21,NURSE - BAND 2 - AGENCY,Rutland Ward Nursing,HCL NURSING,HNSI0000571,426.52
Department of Health,Leicestershire Partnership NHS Trust,07/01/21,NURSE - BAND 2 - AGENCY,St Lukes Stroke Ward,HCL NURSING,HNSI0000571,1671.45
Department of Health,Leicestershire Partnership NHS Trust,07/01/21,NURSE - BAND 5 - AGENCY,St Lukes Ward 3,HCL NURSING,HNSI0000571,1786.03
Department of Health,Leicestershire Partnership NHS Trust,07/01/21,NURSE - BAND 2 - AGENCY,Wakerley Ward,HCL NURSING,HNSI0000571,2428.47
Department of Health,Leicestershire Partnership NHS Trust,07/01/21,NURSE - BAND 5 - AGENCY,Wakerley Ward,HCL NURSING,HNSI0000571,4742.12
Department of Health,Leicestershire Partnership NHS Trust,07/01/21,NURSE - BAND 3 - AGENCY,West Planned Care  - Hinckley Hub,HCL NURSING,HNSI0000571,624.42
Department of Health,Leicestershire Partnership NHS Trust,07/01/21,NURSE - BAND 2 - AGENCY,Beechwood Ward,HCL NURSING,HNSI0000579,429.67
Department of Health,Leicestershire Partnership NHS Trust,07/01/21,NURSE - BAND 5 - AGENCY,City Planned Care - East,HCL NURSING,HNSI0000579,17315.70
Department of Health,Leicestershire Partnership NHS Trust,07/01/21,NURSE - BAND 5 - AGENCY,City Planned Care - West,HCL NURSING,HNSI0000579,8644.04
Department of Health,Leicestershire Partnership NHS Trust,07/01/21,Nurse - Band 6 -Agency,City West CMHT MHSOP,HCL NURSING,HNSI0000579,2739.22
Department of Health,Leicestershire Partnership NHS Trust,07/01/21,NURSE - BAND 2 - AGENCY,Clarendon Ward,HCL NURSING,HNSI0000579,5310.79
Department of Health,Leicestershire Partnership NHS Trust,07/01/21,NURSE - BAND 5 - AGENCY,Clarendon Ward,HCL NURSING,HNSI0000579,3117.53
Department of Health,Leicestershire Partnership NHS Trust,07/01/21,NURSE - BAND 2 - AGENCY,Coalville Ward 2,HCL NURSING,HNSI0000579,113.29
Department of Health,Leicestershire Partnership NHS Trust,07/01/21,NURSE - BAND 2 - AGENCY,Coleman Ward,HCL NURSING,HNSI0000579,1043.84
Department of Health,Leicestershire Partnership NHS Trust,07/01/21,NURSE - BAND 5 - AGENCY,Coleman Ward,HCL NURSING,HNSI0000579,2687.87
Department of Health,Leicestershire Partnership NHS Trust,07/01/21,NURSE - BAND 5 - AGENCY,Dalgliesh Ward,HCL NURSING,HNSI0000579,386.05
Department of Health,Leicestershire Partnership NHS Trust,07/01/21,NURSE - BAND 2 - AGENCY,Gwendolen Ward,HCL NURSING,HNSI0000579,2738.35
Department of Health,Leicestershire Partnership NHS Trust,07/01/21,NURSE - BAND 5 - AGENCY,Gwendolen Ward,HCL NURSING,HNSI0000579,3495.02
Department of Health,Leicestershire Partnership NHS Trust,07/01/21,NURSE - BAND 2 - AGENCY,H&B Comm Hosp East Ward,HCL NURSING,HNSI0000579,13599.56
Department of Health,Leicestershire Partnership NHS Trust,07/01/21,NURSE - BAND 5 - AGENCY,H&B Comm Hosp East Ward,HCL NURSING,HNSI0000579,6807.00
Department of Health,Leicestershire Partnership NHS Trust,07/01/21,NURSE - BAND 2 - AGENCY,H&B Comm Hosp North Ward,HCL NURSING,HNSI0000579,4010.04
Department of Health,Leicestershire Partnership NHS Trust,07/01/21,NURSE - BAND 5 - AGENCY,H&B Comm Hosp North Ward,HCL NURSING,HNSI0000579,1404.76
Department of Health,Leicestershire Partnership NHS Trust,07/01/21,NURSE - BAND 2 - AGENCY,Kirby Ward,HCL NURSING,HNSI0000579,176.18
Department of Health,Leicestershire Partnership NHS Trust,07/01/21,NURSE - BAND 5 - AGENCY,Kirby Ward,HCL NURSING,HNSI0000579,620.00
Department of Health,Leicestershire Partnership NHS Trust,07/01/21,NURSE - BAND 5 - AGENCY,Lough Swithland Ward,HCL NURSING,HNSI0000579,799.55
Department of Health,Leicestershire Partnership NHS Trust,07/01/21,Nurse - Band 6 -Agency,MHSOP Unscheduled Care Service,HCL NURSING,HNSI0000579,555.15
Department of Health,Leicestershire Partnership NHS Trust,07/01/21,NURSE - BAND 5 - AGENCY,Rutland Ward Nursing,HCL NURSING,HNSI0000579,329.84
Department of Health,Leicestershire Partnership NHS Trust,07/01/21,NURSE - BAND 2 - AGENCY,Wakerley Ward,HCL NURSING,HNSI0000579,914.65
Department of Health,Leicestershire Partnership NHS Trust,07/01/21,NURSE - BAND 5 - AGENCY,Wakerley Ward,HCL NURSING,HNSI0000579,4088.80
Department of Health,Leicestershire Partnership NHS Trust,07/01/21,NURSE - BAND 5 - AGENCY,West Planned Care  - Charnwood Hub,HCL NURSING,HNSI0000579,47.94
Department of Health,Leicestershire Partnership NHS Trust,08/01/21,Finance / Procurement Services,HR Employment Services,LINCOLNSHIRE PART NHSFT(RP7),2000021041,29360.83
Department of Health,Leicestershire Partnership NHS Trust,11/01/21,GP IT Expenditure,Area Team,CCS MEDIA,4075428,39780.24
Department of Health,Leicestershire Partnership NHS Trust,11/01/21,GP IT Expenditure,Area Team,CCS MEDIA,4075429,39973.71
Department of Health,Leicestershire Partnership NHS Trust,11/01/21,WIP Project Not in BS - Information Technology,Work in Progress,DELL COMPUTERS,7402675697,35075.27
Department of Health,Leicestershire Partnership NHS Trust,11/01/21,Payroll Deductions -Home Electronics 51 Dec 20,Balance Sheet Collection,SME HCI LTD,134069,25915.50
Department of Health,Leicestershire Partnership NHS Trust,11/01/21,Medical Equipment Repairs / Maintenance,Medical Devices Maintenance (LPT),SUPPLY CHAIN CO LTD,2121005241,49517.09
Department of Health,Leicestershire Partnership NHS Trust,11/01/21,Rent,County Hall,LEIC COUNTY COUNCIL,6286494,34488.50
Department of Health,Leicestershire Partnership NHS Trust,11/01/21,CHP Estates Management,Merlyn Vaz Centre (CHP),COMM HLTH PARTNERSHIPS LTD,0060181850,31975.24
Department of Health,Leicestershire Partnership NHS Trust,11/01/21,Crs_NHS_LT1y -Resus Inventory Supplied.,Balance Sheet Collection,SUPPLY CHAIN CO LTD,1121171058,33057.48
Department of Health,Leicestershire Partnership NHS Trust,11/01/21,CHP Estates Management,Merlyn Vaz Centre (CHP),COMM HLTH PARTNERSHIPS LTD,0060181852,28677.33
Department of Health,Leicestershire Partnership NHS Trust,11/01/21,PropCo Estates Management,"Braunstone Health and Social Care Centre (part) (P16, LPT)",NHS PROPERTY SERVICES LTD,00000001/H402509,56313.80
Department of Health,Leicestershire Partnership NHS Trust,11/01/21,PropCo Estates Management,Charnwood Mill (PROPCO),NHS PROPERTY SERVICES LTD,00000001/H400440,37621.55
Department of Health,Leicestershire Partnership NHS Trust,11/01/21,PropCo Estates Management,"Braunstone Health and Social Care Centre (part) (P16, LPT)",NHS PROPERTY SERVICES LTD,00000001/H400472,56798.64
Department of Health,Leicestershire Partnership NHS Trust,11/01/21,PropCo Estates Management,New Parks Health Centre (PROPCO),NHS PROPERTY SERVICES LTD,00000001/H402520,30776.17
Department of Health,Leicestershire Partnership NHS Trust,11/01/21,PropCo Estates Management,Charnwood Mill (PROPCO),NHS PROPERTY SERVICES LTD,00000001/H402505,35564.06
Department of Health,Leicestershire Partnership NHS Trust,11/01/21,Rent,NSPCC Training Cente,NSPCC,119063,28752.40
Department of Health,Leicestershire Partnership NHS Trust,12/01/21,Nurse - Band 6 -Agency,CAMHS Waiting List Monies,HCL SOCIAL CARE,HWSI0000159,31022.46
Department of Health,Leicestershire Partnership NHS Trust,12/01/21,Rent,"St Peters Health Center (Part 1st and 2nd floors) (P66, LPT)",LEICESTER LIFT CO,LEP1/SI0632,27433.45
Department of Health,Leicestershire Partnership NHS Trust,13/01/21,External Consultancy Fees,Covid Vaccination Workforce Bureau,SEYMOUR JOHN PUB SERV LTD,P1533,162840.00
Department of Health,Leicestershire Partnership NHS Trust,13/01/21,External Consultancy Fees,Covid Vaccination Workforce Bureau,SEYMOUR JOHN PUB SERV LTD,P1534,78294.00
Department of Health,Leicestershire Partnership NHS Trust,13/01/21,Nurse - Band 6 -Agency,AMH - Central Access Point,HCL NURSING,HNSI0000583,2153.15
Department of Health,Leicestershire Partnership NHS Trust,13/01/21,Nurse - Band 6 -Agency,Adult City East CMHT - Merlyn Vaz,HCL NURSING,HNSI0000583,641.98
Department of Health,Leicestershire Partnership NHS Trust,13/01/21,Nurse - Band 6 -Agency,Adult County Charnwood CMHT - Loughborough Base,HCL NURSING,HNSI0000583,1198.36
Department of Health,Leicestershire Partnership NHS Trust,13/01/21,Nurse - Band 6 -Agency,Adult County West Leicestershire CMHT,HCL NURSING,HNSI0000583,641.98
Department of Health,Leicestershire Partnership NHS Trust,13/01/21,NURSE - BAND 2 - AGENCY,Agnes Unit Management,HCL NURSING,HNSI0000583,6013.96
Department of Health,Leicestershire Partnership NHS Trust,13/01/21,NURSE - BAND 5 - AGENCY,Agnes Unit Management,HCL NURSING,HNSI0000583,4108.18
Department of Health,Leicestershire Partnership NHS Trust,13/01/21,NURSE - BAND 2 - AGENCY,Ashby Ward (Bradgate Unit),HCL NURSING,HNSI0000583,349.46
Department of Health,Leicestershire Partnership NHS Trust,13/01/21,NURSE - BAND 5 - AGENCY,Ashby Ward (Bradgate Unit),HCL NURSING,HNSI0000583,725.48
Department of Health,Leicestershire Partnership NHS Trust,13/01/21,NURSE - BAND 2 - AGENCY,Aston Ward (Bradgate Unit),HCL NURSING,HNSI0000583,553.12
Department of Health,Leicestershire Partnership NHS Trust,13/01/21,NURSE - BAND 5 - AGENCY,Aston Ward (Bradgate Unit),HCL NURSING,HNSI0000583,392.91
Department of Health,Leicestershire Partnership NHS Trust,13/01/21,NURSE - BAND 2 - AGENCY,Beaumont Ward - Bradgate Unit,HCL NURSING,HNSI0000583,3115.05
Department of Health,Leicestershire Partnership NHS Trust,13/01/21,NURSE - BAND 5 - AGENCY,Beaumont Ward - Bradgate Unit,HCL NURSING,HNSI0000583,1121.33
Department of Health,Leicestershire Partnership NHS Trust,13/01/21,NURSE - BAND 2 - AGENCY,Belvoir Psychiatric Intensive Care Unit,HCL NURSING,HNSI0000583,2528.11
Department of Health,Leicestershire Partnership NHS Trust,13/01/21,NURSE - BAND 5 - AGENCY,Belvoir Psychiatric Intensive Care Unit,HCL NURSING,HNSI0000583,722.78
Department of Health,Leicestershire Partnership NHS Trust,13/01/21,Nurse - Band 6 -Agency,Crisis Resolution,HCL NURSING,HNSI0000583,3147.29
Department of Health,Leicestershire Partnership NHS Trust,13/01/21,NURSE - BAND 2 - AGENCY,Griffin Ward (HPC),HCL NURSING,HNSI0000583,3396.58
Department of Health,Leicestershire Partnership NHS Trust,13/01/21,NURSE - BAND 5 - AGENCY,Griffin Ward (HPC),HCL NURSING,HNSI0000583,1909.09
Department of Health,Leicestershire Partnership NHS Trust,13/01/21,NURSE - BAND 2 - AGENCY,Heather Ward,HCL NURSING,HNSI0000583,777.71
Department of Health,Leicestershire Partnership NHS Trust,13/01/21,NURSE - BAND 5 - AGENCY,Heather Ward,HCL NURSING,HNSI0000583,449.54
Department of Health,Leicestershire Partnership NHS Trust,13/01/21,NURSE - BAND 2 - AGENCY,Mill Lodge,HCL NURSING,HNSI0000583,2200.52
Department of Health,Leicestershire Partnership NHS Trust,13/01/21,NURSE - BAND 5 - AGENCY,Mill Lodge,HCL NURSING,HNSI0000583,775.51
Department of Health,Leicestershire Partnership NHS Trust,13/01/21,NURSE - BAND 2 - AGENCY,Phoenix Ward (HPC),HCL NURSING,HNSI0000583,255.77
Department of Health,Leicestershire Partnership NHS Trust,13/01/21,NURSE - BAND 2 - AGENCY,Stewart House,HCL NURSING,HNSI0000583,624.52
Department of Health,Leicestershire Partnership NHS Trust,13/01/21,NURSE - BAND 5 - AGENCY,Stewart House,HCL NURSING,HNSI0000583,654.77
Department of Health,Leicestershire Partnership NHS Trust,13/01/21,NURSE - BAND 2 - AGENCY,Thornton Ward - Bradgate Unit,HCL NURSING,HNSI0000583,513.02
Department of Health,Leicestershire Partnership NHS Trust,13/01/21,NURSE - BAND 2 - AGENCY,Watermead Ward (Bradgate Unit),HCL NURSING,HNSI0000583,174.73
Department of Health,Leicestershire Partnership NHS Trust,13/01/21,Nurse - Band 6 -Agency,CAMHS Waiting List Monies,HCL SOCIAL CARE,HWSI0000257,21327.11
Department of Health,Leicestershire Partnership NHS Trust,13/01/21,Insurance Costs,Chief Executives Office,NHS LITIGATION AUTHORITY,SICX404310,141476.10
Department of Health,Leicestershire Partnership NHS Trust,14/01/21,Medical Equipment Repairs / Maintenance,Medical Devices Maintenance (LPT),SUPPLY CHAIN CO LTD,2121004237,49517.09
Department of Health,Leicestershire Partnership NHS Trust,14/01/21,Medical Equipment Repairs / Maintenance,Medical Devices Maintenance (LPT),SUPPLY CHAIN CO LTD,2121004236,26089.70
Department of Health,Leicestershire Partnership NHS Trust,14/01/21,Mobile Telephone Rental / Calls,Specific Unit Budget Reserves,VODAFONE CORPORATE LTD,000096464048,95085.99
Department of Health,Leicestershire Partnership NHS Trust,15/01/21,NURSE - BAND 2 - AGENCY,Clarendon Ward,THORNBURY NURSING SERVICES,5263828,15530.34
Department of Health,Leicestershire Partnership NHS Trust,15/01/21,NURSE - BAND 5 - AGENCY,Clarendon Ward,THORNBURY NURSING SERVICES,5263828,12083.33
Department of Health,Leicestershire Partnership NHS Trust,15/01/21,NURSE - BAND 2 - AGENCY,Gwendolen Ward,THORNBURY NURSING SERVICES,5263828,4128.18
Department of Health,Leicestershire Partnership NHS Trust,15/01/21,NURSE - BAND 5 - AGENCY,Gwendolen Ward,THORNBURY NURSING SERVICES,5263828,1065.39
Department of Health,Leicestershire Partnership NHS Trust,15/01/21,NURSE - BAND 5 - AGENCY,Wakerley Ward,THORNBURY NURSING SERVICES,5263828,483.97
Department of Health,Leicestershire Partnership NHS Trust,15/01/21,Landline Telephone Rental / Calls,"Beaumont Leys Health Centre (P94, LPT)",VIRGIN MEDIA BUSINESS,853083001/004/0121,365.88
Department of Health,Leicestershire Partnership NHS Trust,15/01/21,Landline Telephone Rental / Calls,Belgrave Health Centre (CHP),VIRGIN MEDIA BUSINESS,853083001/004/0121,322.60
Department of Health,Leicestershire Partnership NHS Trust,15/01/21,Landline Telephone Rental / Calls,"Bennion Centre (including Forest Grange Day Unit) (P8, LPT)",VIRGIN MEDIA BUSINESS,853083001/004/0121,7.74
Department of Health,Leicestershire Partnership NHS Trust,15/01/21,Landline Telephone Rental / Calls,"Bradgate Unit (including Glenvale day Unit) (P7, LPT)",VIRGIN MEDIA BUSINESS,853083001/004/0121,7836.60
Department of Health,Leicestershire Partnership NHS Trust,15/01/21,Landline Telephone Rental / Calls,Braunstone Health and Social Care Centre (Part) (PROPCO),VIRGIN MEDIA BUSINESS,853083001/004/0121,1000.66
Department of Health,Leicestershire Partnership NHS Trust,15/01/21,Landline Telephone Rental / Calls,Bridge Park Plaza - First Floor (LPT),VIRGIN MEDIA BUSINESS,853083001/004/0121,4095.04
Department of Health,Leicestershire Partnership NHS Trust,15/01/21,Landline Telephone Rental / Calls,"Coalville Community Hospital (P138, LPT)",VIRGIN MEDIA BUSINESS,853083001/004/0121,1359.41
Department of Health,Leicestershire Partnership NHS Trust,15/01/21,Landline Telephone Rental / Calls,"Coalville Health Centre (P121, LPT)",VIRGIN MEDIA BUSINESS,853083001/004/0121,151.70
Department of Health,Leicestershire Partnership NHS Trust,15/01/21,Landline Telephone Rental / Calls,County Hall,VIRGIN MEDIA BUSINESS,853083001/004/0121,1146.35
Department of Health,Leicestershire Partnership NHS Trust,15/01/21,Landline Telephone Rental / Calls,Estates & Facilities Central,VIRGIN MEDIA BUSINESS,853083001/004/0121,6281.58
Department of Health,Leicestershire Partnership NHS Trust,15/01/21,Landline Telephone Rental / Calls,"Evington Centre (P6, LPT)",VIRGIN MEDIA BUSINESS,853083001/004/0121,1742.57
Department of Health,Leicestershire Partnership NHS Trust,15/01/21,Landline Telephone Rental / Calls,HIS,VIRGIN MEDIA BUSINESS,853083001/004/0121,2558.22
Department of Health,Leicestershire Partnership NHS Trust,15/01/21,Landline Telephone Rental / Calls,"Hawthorne Centre - Coalville (P14, LPT)",VIRGIN MEDIA BUSINESS,853083001/004/0121,522.64
Department of Health,Leicestershire Partnership NHS Trust,15/01/21,Landline Telephone Rental / Calls,Hinckley & District Hospital (PROPCO),VIRGIN MEDIA BUSINESS,853083001/004/0121,990.92
Department of Health,Leicestershire Partnership NHS Trust,15/01/21,Landline Telephone Rental / Calls,"Hinckley and Bosworth Community Hospital (Sunnyside) (P133, LPT)",VIRGIN MEDIA BUSINESS,853083001/004/0121,1048.96
Department of Health,Leicestershire Partnership NHS Trust,15/01/21,Landline Telephone Rental / Calls,Hood Park Leisure Centre Clinic,VIRGIN MEDIA BUSINESS,853083001/004/0121,23.22
Department of Health,Leicestershire Partnership NHS Trust,15/01/21,Landline Telephone Rental / Calls,"Hynca Lodge (P33, LPT)",VIRGIN MEDIA BUSINESS,853083001/004/0121,406.93
Department of Health,Leicestershire Partnership NHS Trust,15/01/21,Landline Telephone Rental / Calls,"Legion House, Ashby",VIRGIN MEDIA BUSINESS,853083001/004/0121,47.76
Department of Health,Leicestershire Partnership NHS Trust,15/01/21,Landline Telephone Rental / Calls,Loughborough Health Centre (PROPCO),VIRGIN MEDIA BUSINESS,853083001/004/0121,8.32
Department of Health,Leicestershire Partnership NHS Trust,15/01/21,Landline Telephone Rental / Calls,"Loughborough Hospital (P136, LPT)",VIRGIN MEDIA BUSINESS,853083001/004/0121,4611.18
Department of Health,Leicestershire Partnership NHS Trust,15/01/21,Landline Telephone Rental / Calls,Mawson House (LPT),VIRGIN MEDIA BUSINESS,853083001/004/0121,521.09
Department of Health,Leicestershire Partnership NHS Trust,15/01/21,Landline Telephone Rental / Calls,Melbourne Centre (Pt Grnd flr) (PROPCO),VIRGIN MEDIA BUSINESS,853083001/004/0121,6.45
Department of Health,Leicestershire Partnership NHS Trust,15/01/21,Landline Telephone Rental / Calls,Melton Mowbray Hospital (previously St. Mary's) (PROPCO),VIRGIN MEDIA BUSINESS,853083001/004/0121,1533.10
Department of Health,Leicestershire Partnership NHS Trust,15/01/21,Landline Telephone Rental / Calls,Merlyn Vaz Centre (CHP),VIRGIN MEDIA BUSINESS,853083001/004/0121,1385.58
Department of Health,Leicestershire Partnership NHS Trust,15/01/21,Landline Telephone Rental / Calls,"Mett Centre (P49, LPT)",VIRGIN MEDIA BUSINESS,853083001/004/0121,79.69
Department of Health,Leicestershire Partnership NHS Trust,15/01/21,Landline Telephone Rental / Calls,NSPCC Training Cente,VIRGIN MEDIA BUSINESS,853083001/004/0121,159.96
Department of Health,Leicestershire Partnership NHS Trust,15/01/21,Landline Telephone Rental / Calls,New Parks Health Centre (PROPCO),VIRGIN MEDIA BUSINESS,853083001/004/0121,1566.90
Department of Health,Leicestershire Partnership NHS Trust,15/01/21,Landline Telephone Rental / Calls,"OSL House (P54, LPT)",VIRGIN MEDIA BUSINESS,853083001/004/0121,1009.49
Department of Health,Leicestershire Partnership NHS Trust,15/01/21,Landline Telephone Rental / Calls,"Orchard Resource Centre (P15, LPT)",VIRGIN MEDIA BUSINESS,853083001/004/0121,747.42
Department of Health,Leicestershire Partnership NHS Trust,15/01/21,Landline Telephone Rental / Calls,Pasley Road Health Centre (PROPCO),VIRGIN MEDIA BUSINESS,853083001/004/0121,120.88
Department of Health,Leicestershire Partnership NHS Trust,15/01/21,Landline Telephone Rental / Calls,"Prince Philip House (P96, LPT)",VIRGIN MEDIA BUSINESS,853083001/004/0121,1545.73
Department of Health,Leicestershire Partnership NHS Trust,15/01/21,Landline Telephone Rental / Calls,Rushey Mead Health Centre (PROPCO),VIRGIN MEDIA BUSINESS,853083001/004/0121,78.60
Department of Health,Leicestershire Partnership NHS Trust,15/01/21,Landline Telephone Rental / Calls,"Shepshed Health Centre (P123, LPT)",VIRGIN MEDIA BUSINESS,853083001/004/0121,9.47
Department of Health,Leicestershire Partnership NHS Trust,15/01/21,Landline Telephone Rental / Calls,"Springfield Road Health Centre (P92, LPT)",VIRGIN MEDIA BUSINESS,853083001/004/0121,400.56
Department of Health,Leicestershire Partnership NHS Trust,15/01/21,Landline Telephone Rental / Calls,"St Peters Health Center (Part 1st and 2nd floors) (P66, LPT)",VIRGIN MEDIA BUSINESS,853083001/004/0121,1841.29
Department of Health,Leicestershire Partnership NHS Trust,15/01/21,Landline Telephone Rental / Calls,"Stewart House (P61, LPT)",VIRGIN MEDIA BUSINESS,853083001/004/0121,2854.08
Department of Health,Leicestershire Partnership NHS Trust,15/01/21,Landline Telephone Rental / Calls,"Swithland House - London Road 352 (P44, LPT)",VIRGIN MEDIA BUSINESS,853083001/004/0121,418.57
Department of Health,Leicestershire Partnership NHS Trust,15/01/21,Landline Telephone Rental / Calls,"The Cedars (P19, LPT)",VIRGIN MEDIA BUSINESS,853083001/004/0121,747.71
Department of Health,Leicestershire Partnership NHS Trust,15/01/21,Landline Telephone Rental / Calls,"The Willows - Cordelia Close (P22, LPT)",VIRGIN MEDIA BUSINESS,853083001/004/0121,448.42
Department of Health,Leicestershire Partnership NHS Trust,15/01/21,Landline Telephone Rental / Calls,Uppingham Road Health Centre (PROPCO),VIRGIN MEDIA BUSINESS,853083001/004/0121,235.62
Department of Health,Leicestershire Partnership NHS Trust,15/01/21,Landline Telephone Rental / Calls,"Valentine Centre (P3, LPT)",VIRGIN MEDIA BUSINESS,853083001/004/0121,2067.46
Department of Health,Leicestershire Partnership NHS Trust,15/01/21,Landline Telephone Rental / Calls,Warren Park Way 25 (PROPCO),VIRGIN MEDIA BUSINESS,853083001/004/0121,664.76
Department of Health,Leicestershire Partnership NHS Trust,15/01/21,Landline Telephone Rental / Calls,"Westcotes Group -Westcotes House (P78, LPT)",VIRGIN MEDIA BUSINESS,853083001/004/0121,1666.15
Department of Health,Leicestershire Partnership NHS Trust,15/01/21,Landline Telephone Rental / Calls,Westcotes Health Centre (CHP),VIRGIN MEDIA BUSINESS,853083001/004/0121,787.30
Department of Health,Leicestershire Partnership NHS Trust,15/01/21,Landline Telephone Rental / Calls,"Winstanley Drive Health Centre (P8, LPT)",VIRGIN MEDIA BUSINESS,853083001/004/0121,418.76
Department of Health,Leicestershire Partnership NHS Trust,15/01/21,NURSE - BAND 2 - AGENCY,Clarendon Ward,THORNBURY NURSING SERVICES,5270746,8823.52
Department of Health,Leicestershire Partnership NHS Trust,15/01/21,NURSE - BAND 5 - AGENCY,Clarendon Ward,THORNBURY NURSING SERVICES,5270746,18190.61
Department of Health,Leicestershire Partnership NHS Trust,15/01/21,NURSE - BAND 5 - AGENCY,Coleman Ward,THORNBURY NURSING SERVICES,5270746,1014.39
Department of Health,Leicestershire Partnership NHS Trust,15/01/21,NURSE - BAND 5 - AGENCY,Gwendolen Ward,THORNBURY NURSING SERVICES,5270746,2646.44
Department of Health,Leicestershire Partnership NHS Trust,15/01/21,NURSE - BAND 5 - AGENCY,Wakerley Ward,THORNBURY NURSING SERVICES,5270746,790.21
Department of Health,Leicestershire Partnership NHS Trust,18/01/21,CHP Estates Management,Merlyn Vaz Centre (CHP),COMM HLTH PARTNERSHIPS LTD,0060183830,47875.32
Department of Health,Leicestershire Partnership NHS Trust,18/01/21,Crs_NHS_LT1y -Resus Inventory Supplied.,Balance Sheet Collection,SUPPLY CHAIN CO LTD,1121175443,45321.20
Department of Health,Leicestershire Partnership NHS Trust,18/01/21,Nurse - Band 6 -Agency,CAMHS Waiting List Monies,HCL SOCIAL CARE,HWSI0000271,27837.60
Department of Health,Leicestershire Partnership NHS Trust,18/01/21,Nurse - Band 6 -Agency,CAMHS Waiting List Monies,HCL SOCIAL CARE,HWSI0000195,23895.34
Department of Health,Leicestershire Partnership NHS Trust,18/01/21,Nurse - Band 6 -Agency,CAMHS Outpatients,HCL SOCIAL CARE,HWSI0000219,415.45
Department of Health,Leicestershire Partnership NHS Trust,18/01/21,Nurse - Band 6 -Agency,CAMHS Waiting List Monies,HCL SOCIAL CARE,HWSI0000219,32591.70
Department of Health,Leicestershire Partnership NHS Trust,19/01/21,Med GP Trainees,Medical Trainees,ST.HELENS & KNOWSLEY NHS TRUST,16802334,75000.00
Department of Health,Leicestershire Partnership NHS Trust,19/01/21,Gas,"Beaumont Leys Health Centre (P94, LPT)",TOTAL GAS & POWER LTD,229337014/21,616.34
Department of Health,Leicestershire Partnership NHS Trust,19/01/21,Gas,"Bradgate Unit (including Glenvale day Unit) (P7, LPT)",TOTAL GAS & POWER LTD,229337014/21,14791.84
Department of Health,Leicestershire Partnership NHS Trust,19/01/21,Gas,Bridge Park Plaza - First Floor (LPT),TOTAL GAS & POWER LTD,229337014/21,1488.88
Department of Health,Leicestershire Partnership NHS Trust,19/01/21,Gas,"Bridge Park Road - Units 2 and 3 (P148, LPT)",TOTAL GAS & POWER LTD,229337014/21,245.64
Department of Health,Leicestershire Partnership NHS Trust,19/01/21,Gas,"Coalville Community Hospital (P138, LPT)",TOTAL GAS & POWER LTD,229337014/21,8073.96
Department of Health,Leicestershire Partnership NHS Trust,19/01/21,Gas,"Coalville Health Centre (P121, LPT)",TOTAL GAS & POWER LTD,229337014/21,593.22
Department of Health,Leicestershire Partnership NHS Trust,19/01/21,Gas,"Evington Centre (P6, LPT)",TOTAL GAS & POWER LTD,229337014/21,999.77
Department of Health,Leicestershire Partnership NHS Trust,19/01/21,Gas,"Farm Lodge (P34, LPT)",TOTAL GAS & POWER LTD,229337014/21,233.99
Department of Health,Leicestershire Partnership NHS Trust,19/01/21,Gas,"Feilding Palmer Hospital (Lutterworth) (P131, LPT)",TOTAL GAS & POWER LTD,229337014/21,1397.22
Department of Health,Leicestershire Partnership NHS Trust,19/01/21,Gas,"Frith Cottages 3 & 4 (P36, LPT)",TOTAL GAS & POWER LTD,229337014/21,198.14
Department of Health,Leicestershire Partnership NHS Trust,19/01/21,Gas,HIS,TOTAL GAS & POWER LTD,229337014/21,274.40
Department of Health,Leicestershire Partnership NHS Trust,19/01/21,Gas,"Hawthorne Centre - Coalville (P14, LPT)",TOTAL GAS & POWER LTD,229337014/21,429.65
Department of Health,Leicestershire Partnership NHS Trust,19/01/21,Gas,"Hinckley and Bosworth Community Hospital (Sunnyside) (P133, LPT)",TOTAL GAS & POWER LTD,229337014/21,5533.34
Department of Health,Leicestershire Partnership NHS Trust,19/01/21,Gas,"Hynca Lodge (P33, LPT)",TOTAL GAS & POWER LTD,229337014/21,423.34
Department of Health,Leicestershire Partnership NHS Trust,19/01/21,Gas,"LGH - Gwendolen House (P4, LPT)",TOTAL GAS & POWER LTD,229337014/21,1722.10
Department of Health,Leicestershire Partnership NHS Trust,19/01/21,Gas,"Loughborough Hospital (P136, LPT)",TOTAL GAS & POWER LTD,229337014/21,13807.27
Department of Health,Leicestershire Partnership NHS Trust,19/01/21,Gas,Mawson House (LPT),TOTAL GAS & POWER LTD,229337014/21,49.59
Department of Health,Leicestershire Partnership NHS Trust,19/01/21,Gas,"Mett Centre (P49, LPT)",TOTAL GAS & POWER LTD,229337014/21,254.09
Department of Health,Leicestershire Partnership NHS Trust,19/01/21,Gas,"Narborough Health Centre (P117, LPT)",TOTAL GAS & POWER LTD,229337014/21,780.19
Department of Health,Leicestershire Partnership NHS Trust,19/01/21,Gas,"OSL House (P54, LPT)",TOTAL GAS & POWER LTD,229337014/21,993.00
Department of Health,Leicestershire Partnership NHS Trust,19/01/21,Gas,"Orchard Resource Centre (P15, LPT)",TOTAL GAS & POWER LTD,229337014/21,609.44
Department of Health,Leicestershire Partnership NHS Trust,19/01/21,Gas,"Rubicon Close 3 (P56, LPT)",TOTAL GAS & POWER LTD,229337014/21,59.50
Department of Health,Leicestershire Partnership NHS Trust,19/01/21,Gas,"Rutland Memorial Hospital (P134, LPT)",TOTAL GAS & POWER LTD,229337014/21,1670.21
Department of Health,Leicestershire Partnership NHS Trust,19/01/21,Gas,"Shepshed Health Centre (P123, LPT)",TOTAL GAS & POWER LTD,229337014/21,567.49
Department of Health,Leicestershire Partnership NHS Trust,19/01/21,Gas,"Springfield Road Health Centre (P92, LPT)",TOTAL GAS & POWER LTD,229337014/21,562.51
Department of Health,Leicestershire Partnership NHS Trust,19/01/21,Gas,"Stewart House (P61, LPT)",TOTAL GAS & POWER LTD,229337014/21,2340.02
Department of Health,Leicestershire Partnership NHS Trust,19/01/21,Gas,"Swithland House - London Road 352 (P44, LPT)",TOTAL GAS & POWER LTD,229337014/21,865.61
Department of Health,Leicestershire Partnership NHS Trust,19/01/21,Gas,"The Agnes Unit (AKA Assessment and Treatment Centre) (P85, LPT)",TOTAL GAS & POWER LTD,229337014/21,2902.44
Department of Health,Leicestershire Partnership NHS Trust,19/01/21,Gas,The Beacon,TOTAL GAS & POWER LTD,229337014/21,1460.24
Department of Health,Leicestershire Partnership NHS Trust,19/01/21,Gas,"The Cedars (P19, LPT)",TOTAL GAS & POWER LTD,229337014/21,316.13
Department of Health,Leicestershire Partnership NHS Trust,19/01/21,Gas,"The Grange 1 (P4, LPT)",TOTAL GAS & POWER LTD,229337014/21,124.64
Department of Health,Leicestershire Partnership NHS Trust,19/01/21,Gas,"The Grange 2 (P41, LPT)",TOTAL GAS & POWER LTD,229337014/21,197.84
Department of Health,Leicestershire Partnership NHS Trust,19/01/21,Gas,"The Willows - Cordelia Close (P22, LPT)",TOTAL GAS & POWER LTD,229337014/21,3415.09
Department of Health,Leicestershire Partnership NHS Trust,19/01/21,Gas,"Westcotes Group -Westcotes House (P78, LPT)",TOTAL GAS & POWER LTD,229337014/21,1035.16
Department of Health,Leicestershire Partnership NHS Trust,19/01/21,Gas,"Winstanley Drive Health Centre (P8, LPT)",TOTAL GAS & POWER LTD,229337014/21,501.25
Department of Health,Leicestershire Partnership NHS Trust,21/01/21,Internal Printing (machines and ink),Estates & Facilities Central,LEXMARK INTERNATIONAL LTD,900650300143,32559.51
Department of Health,Leicestershire Partnership NHS Trust,21/01/21,NURSE - BAND 2 - AGENCY,Beechwood Ward,HCL NURSING,HNSI0000584,426.52
Department of Health,Leicestershire Partnership NHS Trust,21/01/21,NURSE - BAND 5 - AGENCY,City Planned Care - East,HCL NURSING,HNSI0000584,13958.94
Department of Health,Leicestershire Partnership NHS Trust,21/01/21,NURSE - BAND 5 - AGENCY,City Planned Care - West,HCL NURSING,HNSI0000584,7340.55
Department of Health,Leicestershire Partnership NHS Trust,21/01/21,Nurse - Band 6 -Agency,City West CMHT MHSOP,HCL NURSING,HNSI0000584,641.98
Department of Health,Leicestershire Partnership NHS Trust,21/01/21,NURSE - BAND 2 - AGENCY,Clarendon Ward,HCL NURSING,HNSI0000584,9932.21
Department of Health,Leicestershire Partnership NHS Trust,21/01/21,NURSE - BAND 5 - AGENCY,Clarendon Ward,HCL NURSING,HNSI0000584,6129.01
Department of Health,Leicestershire Partnership NHS Trust,21/01/21,NURSE - BAND 2 - AGENCY,Coalville Snibston Ward,HCL NURSING,HNSI0000584,635.48
Department of Health,Leicestershire Partnership NHS Trust,21/01/21,NURSE - BAND 2 - AGENCY,Coleman Ward,HCL NURSING,HNSI0000584,2251.89
Department of Health,Leicestershire Partnership NHS Trust,21/01/21,NURSE - BAND 5 - AGENCY,Coleman Ward,HCL NURSING,HNSI0000584,4553.72
Department of Health,Leicestershire Partnership NHS Trust,21/01/21,NURSE - BAND 2 - AGENCY,Dalgliesh Ward,HCL NURSING,HNSI0000584,418.99
Department of Health,Leicestershire Partnership NHS Trust,21/01/21,NURSE - BAND 5 - AGENCY,Dalgliesh Ward,HCL NURSING,HNSI0000584,434.40
Department of Health,Leicestershire Partnership NHS Trust,21/01/21,NURSE - BAND 2 - AGENCY,Gwendolen Ward,HCL NURSING,HNSI0000584,493.22
Department of Health,Leicestershire Partnership NHS Trust,21/01/21,NURSE - BAND 5 - AGENCY,Gwendolen Ward,HCL NURSING,HNSI0000584,7403.77
Department of Health,Leicestershire Partnership NHS Trust,21/01/21,NURSE - BAND 2 - AGENCY,H&B Comm Hosp East Ward,HCL NURSING,HNSI0000584,17018.50
Department of Health,Leicestershire Partnership NHS Trust,21/01/21,NURSE - BAND 5 - AGENCY,H&B Comm Hosp East Ward,HCL NURSING,HNSI0000584,8348.04
Department of Health,Leicestershire Partnership NHS Trust,21/01/21,NURSE - BAND 2 - AGENCY,H&B Comm Hosp North Ward,HCL NURSING,HNSI0000584,2493.13
Department of Health,Leicestershire Partnership NHS Trust,21/01/21,NURSE - BAND 5 - AGENCY,H&B Comm Hosp North Ward,HCL NURSING,HNSI0000584,1789.94
Department of Health,Leicestershire Partnership NHS Trust,21/01/21,NURSE - BAND 5 - AGENCY,Kirby Ward,HCL NURSING,HNSI0000584,744.95
Department of Health,Leicestershire Partnership NHS Trust,21/01/21,NURSE - BAND 5 - AGENCY,Lough Swithland Ward,HCL NURSING,HNSI0000584,2018.50
Department of Health,Leicestershire Partnership NHS Trust,21/01/21,Nurse - Band 6 -Agency,MHSOP Unscheduled Care Service,HCL NURSING,HNSI0000584,571.28
Department of Health,Leicestershire Partnership NHS Trust,21/01/21,NURSE - BAND 5 - AGENCY,St Lukes Ward 3,HCL NURSING,HNSI0000584,386.15
Department of Health,Leicestershire Partnership NHS Trust,21/01/21,NURSE - BAND 2 - AGENCY,Wakerley Ward,HCL NURSING,HNSI0000584,1355.84
Department of Health,Leicestershire Partnership NHS Trust,21/01/21,NURSE - BAND 5 - AGENCY,Wakerley Ward,HCL NURSING,HNSI0000584,3704.81
Department of Health,Leicestershire Partnership NHS Trust,21/01/21,NURSE - BAND 5 - AGENCY,West Planned Care  - Hinckley Hub,HCL NURSING,HNSI0000584,728.17
Department of Health,Leicestershire Partnership NHS Trust,21/01/21,NURSE - BAND 2 - AGENCY,Beechwood Ward,HCL NURSING,HNSI0000589,720.38
Department of Health,Leicestershire Partnership NHS Trust,21/01/21,NURSE - BAND 5 - AGENCY,Beechwood Ward,HCL NURSING,HNSI0000589,514.85
Department of Health,Leicestershire Partnership NHS Trust,21/01/21,NURSE - BAND 5 - AGENCY,City Planned Care - East,HCL NURSING,HNSI0000589,18803.11
Department of Health,Leicestershire Partnership NHS Trust,21/01/21,NURSE - BAND 5 - AGENCY,City Planned Care - West,HCL NURSING,HNSI0000589,9657.38
Department of Health,Leicestershire Partnership NHS Trust,21/01/21,Nurse - Band 6 -Agency,City West CMHT MHSOP,HCL NURSING,HNSI0000589,1697.72
Department of Health,Leicestershire Partnership NHS Trust,21/01/21,NURSE - BAND 2 - AGENCY,Clarendon Ward,HCL NURSING,HNSI0000589,7695.23
Department of Health,Leicestershire Partnership NHS Trust,21/01/21,NURSE - BAND 5 - AGENCY,Clarendon Ward,HCL NURSING,HNSI0000589,5394.81
Department of Health,Leicestershire Partnership NHS Trust,21/01/21,NURSE - BAND 2 - AGENCY,Coalville Snibston Ward,HCL NURSING,HNSI0000589,584.38
Department of Health,Leicestershire Partnership NHS Trust,21/01/21,NURSE - BAND 2 - AGENCY,Coalville Ward 2,HCL NURSING,HNSI0000589,613.64
Department of Health,Leicestershire Partnership NHS Trust,21/01/21,NURSE - BAND 2 - AGENCY,Coleman Ward,HCL NURSING,HNSI0000589,2799.13
Department of Health,Leicestershire Partnership NHS Trust,21/01/21,NURSE - BAND 5 - AGENCY,Coleman Ward,HCL NURSING,HNSI0000589,5149.22
Department of Health,Leicestershire Partnership NHS Trust,21/01/21,NURSE - BAND 5 - AGENCY,Dalgliesh Ward,HCL NURSING,HNSI0000589,994.36
Department of Health,Leicestershire Partnership NHS Trust,21/01/21,NURSE - BAND 2 - AGENCY,Gwendolen Ward,HCL NURSING,HNSI0000589,3576.82
Department of Health,Leicestershire Partnership NHS Trust,21/01/21,NURSE - BAND 5 - AGENCY,Gwendolen Ward,HCL NURSING,HNSI0000589,3788.24
Department of Health,Leicestershire Partnership NHS Trust,21/01/21,NURSE - BAND 2 - AGENCY,H&B Comm Hosp East Ward,HCL NURSING,HNSI0000589,16644.23
Department of Health,Leicestershire Partnership NHS Trust,21/01/21,NURSE - BAND 5 - AGENCY,H&B Comm Hosp East Ward,HCL NURSING,HNSI0000589,8750.16
Department of Health,Leicestershire Partnership NHS Trust,21/01/21,NURSE - BAND 2 - AGENCY,H&B Comm Hosp North Ward,HCL NURSING,HNSI0000589,1767.59
Department of Health,Leicestershire Partnership NHS Trust,21/01/21,NURSE - BAND 5 - AGENCY,H&B Comm Hosp North Ward,HCL NURSING,HNSI0000589,402.20
Department of Health,Leicestershire Partnership NHS Trust,21/01/21,NURSE - BAND 5 - AGENCY,Kirby Ward,HCL NURSING,HNSI0000589,302.60
Department of Health,Leicestershire Partnership NHS Trust,21/01/21,NURSE - BAND 2 - AGENCY,Lough Swithland Ward,HCL NURSING,HNSI0000589,877.79
Department of Health,Leicestershire Partnership NHS Trust,21/01/21,NURSE - BAND 5 - AGENCY,Lough Swithland Ward,HCL NURSING,HNSI0000589,393.34
Department of Health,Leicestershire Partnership NHS Trust,21/01/21,Nurse - Band 6 -Agency,MHSOP Unscheduled Care Service,HCL NURSING,HNSI0000589,855.97
Department of Health,Leicestershire Partnership NHS Trust,21/01/21,NURSE - BAND 5 - AGENCY,St Lukes Ward 3,HCL NURSING,HNSI0000589,2429.39
Department of Health,Leicestershire Partnership NHS Trust,21/01/21,NURSE - BAND 2 - AGENCY,Wakerley Ward,HCL NURSING,HNSI0000589,1546.83
Department of Health,Leicestershire Partnership NHS Trust,21/01/21,NURSE - BAND 5 - AGENCY,Wakerley Ward,HCL NURSING,HNSI0000589,5754.32
Department of Health,Leicestershire Partnership NHS Trust,21/01/21,NURSE - BAND 3 - AGENCY,West Planned Care  - Hinckley Hub,HCL NURSING,HNSI0000589,895.81
Department of Health,Leicestershire Partnership NHS Trust,22/01/21,NURSE - BAND 2 - AGENCY,Beechwood Ward,HCL NURSING,HNSI0000593,429.84
Department of Health,Leicestershire Partnership NHS Trust,22/01/21,NURSE - BAND 5 - AGENCY,City Planned Care - East,HCL NURSING,HNSI0000593,15669.95
Department of Health,Leicestershire Partnership NHS Trust,22/01/21,NURSE - BAND 5 - AGENCY,City Planned Care - West,HCL NURSING,HNSI0000593,13063.64
Department of Health,Leicestershire Partnership NHS Trust,22/01/21,NURSE - BAND 5 - AGENCY,City West CMHT MHSOP,HCL NURSING,HNSI0000593,2116.22
Department of Health,Leicestershire Partnership NHS Trust,22/01/21,NURSE - BAND 2 - AGENCY,Clarendon Ward,HCL NURSING,HNSI0000593,8609.80
Department of Health,Leicestershire Partnership NHS Trust,22/01/21,NURSE - BAND 5 - AGENCY,Clarendon Ward,HCL NURSING,HNSI0000593,7615.23
Department of Health,Leicestershire Partnership NHS Trust,22/01/21,NURSE - BAND 2 - AGENCY,Coalville Snibston Ward,HCL NURSING,HNSI0000593,344.03
Department of Health,Leicestershire Partnership NHS Trust,22/01/21,NURSE - BAND 5 - AGENCY,Coalville Snibston Ward,HCL NURSING,HNSI0000593,2691.39
Department of Health,Leicestershire Partnership NHS Trust,22/01/21,NURSE - BAND 2 - AGENCY,Coalville Ward 2,HCL NURSING,HNSI0000593,174.72
Department of Health,Leicestershire Partnership NHS Trust,22/01/21,NURSE - BAND 2 - AGENCY,Coleman Ward,HCL NURSING,HNSI0000593,1226.61
Department of Health,Leicestershire Partnership NHS Trust,22/01/21,NURSE - BAND 5 - AGENCY,Coleman Ward,HCL NURSING,HNSI0000593,6163.86
Department of Health,Leicestershire Partnership NHS Trust,22/01/21,NURSE - BAND 2 - AGENCY,Gwendolen Ward,HCL NURSING,HNSI0000593,3675.27
Department of Health,Leicestershire Partnership NHS Trust,22/01/21,NURSE - BAND 5 - AGENCY,Gwendolen Ward,HCL NURSING,HNSI0000593,3030.78
Department of Health,Leicestershire Partnership NHS Trust,22/01/21,NURSE - BAND 5 - AGENCY,H&B Comm Hosp East Ward,HCL NURSING,HNSI0000593,24427.55
Department of Health,Leicestershire Partnership NHS Trust,22/01/21,NURSE - BAND 2 - AGENCY,H&B Comm Hosp North Ward,HCL NURSING,HNSI0000593,1720.29
Department of Health,Leicestershire Partnership NHS Trust,22/01/21,NURSE - BAND 2 - AGENCY,Lough Charnwood Ward,HCL NURSING,HNSI0000593,4556.58
Department of Health,Leicestershire Partnership NHS Trust,22/01/21,NURSE - BAND 2 - AGENCY,Lough Swithland Ward,HCL NURSING,HNSI0000593,1044.09
Department of Health,Leicestershire Partnership NHS Trust,22/01/21,Nurse - Band 6 -Agency,Lutterworth Health Centre,HCL NURSING,HNSI0000593,1097.87
Department of Health,Leicestershire Partnership NHS Trust,22/01/21,NURSE - BAND 5 - AGENCY,MHSOP Unscheduled Care Service,HCL NURSING,HNSI0000593,957.88
Department of Health,Leicestershire Partnership NHS Trust,22/01/21,NURSE - BAND 5 - AGENCY,St Lukes Ward 3,HCL NURSING,HNSI0000593,3087.79
Department of Health,Leicestershire Partnership NHS Trust,22/01/21,NURSE - BAND 2 - AGENCY,Wakerley Ward,HCL NURSING,HNSI0000593,1806.33
Department of Health,Leicestershire Partnership NHS Trust,22/01/21,NURSE - BAND 5 - AGENCY,Wakerley Ward,HCL NURSING,HNSI0000593,5095.51
Department of Health,Leicestershire Partnership NHS Trust,22/01/21,NURSE - BAND 3 - AGENCY,West Planned Care  - Hinckley Hub,HCL NURSING,HNSI0000593,508.92
Department of Health,Leicestershire Partnership NHS Trust,22/01/21,Leased / Hired Vehicles,Assertive Outreach Services,AUTOMOTIVE LEASING LTD,507885312,10.00
Department of Health,Leicestershire Partnership NHS Trust,22/01/21,Leased / Hired Vehicles,Autism,AUTOMOTIVE LEASING LTD,507885312,788.96
Department of Health,Leicestershire Partnership NHS Trust,22/01/21,Prep_ LT1y -Prepayments Lease Cars,Balance Sheet Collection,AUTOMOTIVE LEASING LTD,507885312,48853.36
Department of Health,Leicestershire Partnership NHS Trust,22/01/21,Trade_Drs_LT1y -Lease Cars Invoicing Contrl Ac.,Balance Sheet Collection,AUTOMOTIVE LEASING LTD,507885312,168.51
Department of Health,Leicestershire Partnership NHS Trust,22/01/21,Leased / Hired Vehicles,CAMHS Outpatients,AUTOMOTIVE LEASING LTD,507885312,5.00
Department of Health,Leicestershire Partnership NHS Trust,22/01/21,Leased / Hired Vehicles,CHS Community Management,AUTOMOTIVE LEASING LTD,507885312,10.00
Department of Health,Leicestershire Partnership NHS Trust,22/01/21,Leased / Hired Vehicles,COVID 19,AUTOMOTIVE LEASING LTD,507885312,472.36
Department of Health,Leicestershire Partnership NHS Trust,22/01/21,Leased / Hired Vehicles,City East CMHT MHSOP,AUTOMOTIVE LEASING LTD,507885312,10.00
Department of Health,Leicestershire Partnership NHS Trust,22/01/21,Leased / Hired Vehicles,County 0-19 South Charnwood HV,AUTOMOTIVE LEASING LTD,507885312,10.00
Department of Health,Leicestershire Partnership NHS Trust,22/01/21,Leased / Hired Vehicles,Crisis Response and Home Treatment,AUTOMOTIVE LEASING LTD,507885312,543.68
Department of Health,Leicestershire Partnership NHS Trust,22/01/21,Leased / Hired Vehicles,"East Planned Care - Melton,Syston,Rutland",AUTOMOTIVE LEASING LTD,507885312,10.00
Department of Health,Leicestershire Partnership NHS Trust,22/01/21,Leased / Hired Vehicles,"East Planned Care - Oadby,Wigston,Harb – Therapy",AUTOMOTIVE LEASING LTD,507885312,10.00
Department of Health,Leicestershire Partnership NHS Trust,22/01/21,Leased / Hired Vehicles,Forensic Services - Community,AUTOMOTIVE LEASING LTD,507885312,10.00
Department of Health,Leicestershire Partnership NHS Trust,22/01/21,Leased / Hired Vehicles,Heart Failure Service,AUTOMOTIVE LEASING LTD,507885312,10.00
Department of Health,Leicestershire Partnership NHS Trust,22/01/21,Leased / Hired Vehicles,Integrated Specialist Palliative Care Team,AUTOMOTIVE LEASING LTD,507885312,5.00
Department of Health,Leicestershire Partnership NHS Trust,22/01/21,Leased / Hired Vehicles,PIER Team - Early Intervention Services,AUTOMOTIVE LEASING LTD,507885312,10.00
Department of Health,Leicestershire Partnership NHS Trust,22/01/21,Leased / Hired Vehicles,Pharmacy,AUTOMOTIVE LEASING LTD,507885312,150.00
Department of Health,Leicestershire Partnership NHS Trust,22/01/21,Leased / Hired Vehicles,School Age Immunisation and Vaccinations,AUTOMOTIVE LEASING LTD,507885312,854.08
Department of Health,Leicestershire Partnership NHS Trust,22/01/21,Leased / Hired Vehicles,Short Breaks - Specialist Nursing,AUTOMOTIVE LEASING LTD,507885312,10.00
Department of Health,Leicestershire Partnership NHS Trust,22/01/21,Leased / Hired Vehicles,Support Services (Learn Dis),AUTOMOTIVE LEASING LTD,507885312,95.00
Department of Health,Leicestershire Partnership NHS Trust,22/01/21,Leased / Hired Vehicles,West Leicestershire CMHT MHSOP,AUTOMOTIVE LEASING LTD,507885312,10.00
Department of Health,Leicestershire Partnership NHS Trust,22/01/21,Leased / Hired Vehicles,West Planned Care  - Hinckley Hub,AUTOMOTIVE LEASING LTD,507885312,20.00
Department of Health,Leicestershire Partnership NHS Trust,22/01/21,Leased / Hired Vehicles,West Planned Care - NWL Hub,AUTOMOTIVE LEASING LTD,507885312,10.00
Department of Health,Leicestershire Partnership NHS Trust,22/01/21,Leased / Hired Vehicles,Willows Unit,AUTOMOTIVE LEASING LTD,507885312,15.00
Department of Health,Leicestershire Partnership NHS Trust,22/01/21,WIP Project Not in BS - Buildings excl Dwellings,Work in Progress,INTERSERVE CONSTRUCTION LTD,TMP01208,369479.08
Department of Health,Leicestershire Partnership NHS Trust,22/01/21,Nurse - Band 6 -Agency,AMH - Central Access Point,HCL NURSING,HNSI0000592,4012.64
Department of Health,Leicestershire Partnership NHS Trust,22/01/21,Nurse - Band 6 -Agency,Adult City East CMHT - Merlyn Vaz,HCL NURSING,HNSI0000592,3209.90
Department of Health,Leicestershire Partnership NHS Trust,22/01/21,Nurse - Band 6 -Agency,Adult County Charnwood CMHT - Loughborough Base,HCL NURSING,HNSI0000592,2139.93
Department of Health,Leicestershire Partnership NHS Trust,22/01/21,Nurse - Band 6 -Agency,Adult County West Leicestershire CMHT,HCL NURSING,HNSI0000592,1069.97
Department of Health,Leicestershire Partnership NHS Trust,22/01/21,NURSE - BAND 2 - AGENCY,Agnes Unit Management,HCL NURSING,HNSI0000592,2937.49
Department of Health,Leicestershire Partnership NHS Trust,22/01/21,NURSE - BAND 5 - AGENCY,Agnes Unit Management,HCL NURSING,HNSI0000592,4032.44
Department of Health,Leicestershire Partnership NHS Trust,22/01/21,NURSE - BAND 2 - AGENCY,Aston Ward (Bradgate Unit),HCL NURSING,HNSI0000592,494.65
Department of Health,Leicestershire Partnership NHS Trust,22/01/21,NURSE - BAND 5 - AGENCY,Aston Ward (Bradgate Unit),HCL NURSING,HNSI0000592,1307.00
Department of Health,Leicestershire Partnership NHS Trust,22/01/21,NURSE - BAND 2 - AGENCY,Beaumont Ward - Bradgate Unit,HCL NURSING,HNSI0000592,3821.45
Department of Health,Leicestershire Partnership NHS Trust,22/01/21,NURSE - BAND 5 - AGENCY,Beaumont Ward - Bradgate Unit,HCL NURSING,HNSI0000592,1401.58
Department of Health,Leicestershire Partnership NHS Trust,22/01/21,NURSE - BAND 5 - AGENCY,Belvoir Psychiatric Intensive Care Unit,HCL NURSING,HNSI0000592,1344.60
Department of Health,Leicestershire Partnership NHS Trust,22/01/21,Nurse - Band 6 -Agency,Crisis Resolution,HCL NURSING,HNSI0000592,6111.27
Department of Health,Leicestershire Partnership NHS Trust,22/01/21,NURSE - BAND 2 - AGENCY,Griffin Ward (HPC),HCL NURSING,HNSI0000592,369.35
Department of Health,Leicestershire Partnership NHS Trust,22/01/21,NURSE - BAND 5 - AGENCY,Griffin Ward (HPC),HCL NURSING,HNSI0000592,1511.84
Department of Health,Leicestershire Partnership NHS Trust,22/01/21,NURSE - BAND 2 - AGENCY,Heather Ward,HCL NURSING,HNSI0000592,573.05
Department of Health,Leicestershire Partnership NHS Trust,22/01/21,Nurse - Band 6 -Agency,Mental Health Triage Team,HCL NURSING,HNSI0000592,1854.12
Department of Health,Leicestershire Partnership NHS Trust,22/01/21,NURSE - BAND 5 - AGENCY,Mill Lodge,HCL NURSING,HNSI0000592,308.22
Department of Health,Leicestershire Partnership NHS Trust,22/01/21,NURSE - BAND 5 - AGENCY,Stewart House,HCL NURSING,HNSI0000592,1220.52
Department of Health,Leicestershire Partnership NHS Trust,22/01/21,NURSE - BAND 2 - AGENCY,Watermead Ward (Bradgate Unit),HCL NURSING,HNSI0000592,349.46
Department of Health,Leicestershire Partnership NHS Trust,22/01/21,Nurse - Band 6 -Agency,CAMHS Waiting List Monies,HCL SOCIAL CARE,HWSI0000286,28799.29
Department of Health,Leicestershire Partnership NHS Trust,25/01/21,Crs_NHS_LT1y -Resus Inventory Supplied.,Balance Sheet Collection,SUPPLY CHAIN CO LTD,1121181105,34495.24
Department of Health,Leicestershire Partnership NHS Trust,25/01/21,Nurse - Band 6 -Agency,AMH - Central Access Point,HCL NURSING,HNSI0000564,1907.58
Department of Health,Leicestershire Partnership NHS Trust,25/01/21,Nurse - Band 6 -Agency,Adult City East CMHT - Merlyn Vaz,HCL NURSING,HNSI0000564,2139.93
Department of Health,Leicestershire Partnership NHS Trust,25/01/21,Nurse - Band 6 -Agency,Adult County West Leicestershire CMHT,HCL NURSING,HNSI0000564,1069.97
Department of Health,Leicestershire Partnership NHS Trust,25/01/21,NURSE - BAND 2 - AGENCY,Agnes Unit Management,HCL NURSING,HNSI0000564,4091.16
Department of Health,Leicestershire Partnership NHS Trust,25/01/21,NURSE - BAND 5 - AGENCY,Agnes Unit Management,HCL NURSING,HNSI0000564,6263.30
Department of Health,Leicestershire Partnership NHS Trust,25/01/21,NURSE - BAND 2 - AGENCY,Ashby Ward (Bradgate Unit),HCL NURSING,HNSI0000564,349.46
Department of Health,Leicestershire Partnership NHS Trust,25/01/21,NURSE - BAND 5 - AGENCY,Ashby Ward (Bradgate Unit),HCL NURSING,HNSI0000564,329.84
Department of Health,Leicestershire Partnership NHS Trust,25/01/21,NURSE - BAND 2 - AGENCY,Aston Ward (Bradgate Unit),HCL NURSING,HNSI0000564,1877.37
Department of Health,Leicestershire Partnership NHS Trust,25/01/21,NURSE - BAND 2 - AGENCY,Beaumont Ward - Bradgate Unit,HCL NURSING,HNSI0000564,1037.54
Department of Health,Leicestershire Partnership NHS Trust,25/01/21,NURSE - BAND 2 - AGENCY,Belvoir Psychiatric Intensive Care Unit,HCL NURSING,HNSI0000564,3055.56
Department of Health,Leicestershire Partnership NHS Trust,25/01/21,NURSE - BAND 5 - AGENCY,Belvoir Psychiatric Intensive Care Unit,HCL NURSING,HNSI0000564,2371.93
Department of Health,Leicestershire Partnership NHS Trust,25/01/21,Nurse - Band 6 -Agency,Crisis Resolution,HCL NURSING,HNSI0000564,5642.24
Department of Health,Leicestershire Partnership NHS Trust,25/01/21,NURSE - BAND 2 - AGENCY,Griffin Ward (HPC),HCL NURSING,HNSI0000564,519.44
Department of Health,Leicestershire Partnership NHS Trust,25/01/21,NURSE - BAND 5 - AGENCY,Griffin Ward (HPC),HCL NURSING,HNSI0000564,1612.91
Department of Health,Leicestershire Partnership NHS Trust,25/01/21,NURSE - BAND 2 - AGENCY,Heather Ward,HCL NURSING,HNSI0000564,1039.81
Department of Health,Leicestershire Partnership NHS Trust,25/01/21,Nurse - Band 6 -Agency,Mental Health Triage Team,HCL NURSING,HNSI0000564,292.95
Department of Health,Leicestershire Partnership NHS Trust,25/01/21,NURSE - BAND 5 - AGENCY,Mill Lodge,HCL NURSING,HNSI0000564,287.94
Department of Health,Leicestershire Partnership NHS Trust,25/01/21,NURSE - BAND 2 - AGENCY,Phoenix Ward (HPC),HCL NURSING,HNSI0000564,174.73
Department of Health,Leicestershire Partnership NHS Trust,25/01/21,NURSE - BAND 5 - AGENCY,Phoenix Ward (HPC),HCL NURSING,HNSI0000564,266.77
Department of Health,Leicestershire Partnership NHS Trust,25/01/21,NURSE - BAND 5 - AGENCY,Stewart House,HCL NURSING,HNSI0000564,547.29
Department of Health,Leicestershire Partnership NHS Trust,25/01/21,NURSE - BAND 2 - AGENCY,Thornton Ward - Bradgate Unit,HCL NURSING,HNSI0000564,174.73
Department of Health,Leicestershire Partnership NHS Trust,25/01/21,NURSE - BAND 2 - AGENCY,Watermead Ward (Bradgate Unit),HCL NURSING,HNSI0000564,786.31
Department of Health,Leicestershire Partnership NHS Trust,26/01/21,External Consultancy Fees,Trust Headquarters Admin,TURNER & TOWNSEND COST MAN,000139731,26989.20
Department of Health,Leicestershire Partnership NHS Trust,26/01/21,Water & Sewerage Charges,"Bradgate Unit (including Glenvale day Unit) (P7, LPT)",WATER PLUS,0437002007/INV04025992,29691.61
Department of Health,Leicestershire Partnership NHS Trust,27/01/21,Rent,"Syston Health Centre (New Building) (P127, LPT)",PHIP (5) LIMITED,LINV518493,37500.00
Department of Health,Leicestershire Partnership NHS Trust,27/01/21,Network Costs - WAN Maint,HIS Infrastructure,CCS MEDIA,4097488,37612.27
Department of Health,Leicestershire Partnership NHS Trust,27/01/21,Non NHS ECRs,Out of County Income - Inpateints Project,ACTION HOMELESS,NHSSTD3001,61209.26
Department of Health,Leicestershire Partnership NHS Trust,28/01/21,WIP Project Not in BS - Information Technology,Work in Progress,DELL COMPUTERS,7402665349,41880.00
Department of Health,Leicestershire Partnership NHS Trust,28/01/21,Rent,"St Peters Health Center (Part 1st and 2nd floors) (P66, LPT)",LEICESTER LIFT CO,LEP1/SI0678,32920.14
Department of Health,Leicestershire Partnership NHS Trust,29/01/21,Healthcare Services / Recharges from Non-NHS Bodies,CHS Community,SPIRIT DIGITAL LTD,1003,72000.00
